bitfinex-derivatives/quotes_ETHF0:USTF0_20240904
["timestamp","ask_amount","ask_price","bid_price","bid_amount"]
[1725470883442,0.00607091,2467.2,2467.1,0.40531]
[1725470885846,6.15967091,2467.2,2466.6,0.40538]
[1725470886038,2.1,2467.0,2466.5,0.3623]
[1725470886343,0.40533,2467.0,2466.6,0.40538]
[1725470886545,0.3863,2466.9,2466.7,0.40537]
[1725470887147,0.3863,2466.9,2466.7,0.40536]
[1725470887348,0.3863,2466.9,2466.8,0.40536]
[1725470887637,0.3863,2466.9,2466.5,0.3623]
[1725470887847,0.3863,2466.9,2466.8,0.40536]
[1725470888444,0.3863,2466.9,2466.7,0.40536]
[1725470888643,0.3863,2466.9,2466.7,0.40537]
[1725470888848,0.40542,2466.4,2466.3,0.00322865]
[1725470889242,7.57339,2466.4,2466.3,0.00322865]
[1725470889436,7.77558693,2466.4,2466.3,0.00322865]
[1725470889937,8.14428693,2466.4,2466.3,0.00322865]
[1725470890152,14.14428693,2466.4,2466.3,0.00322865]
[1725470890344,1.01372,2466.1,2464.8,0.40567]
[1725470890548,5.3078,2465.3,2464.6,3.2078]
[1725470890847,3.2078,2465.0,2464.7,8.31092875]
[1725470891155,3.2078,2465.1,2465.0,0.40565]
[1725470891443,2.1,2465.5,2464.7,8.31092875]
[1725470891444,3.6134,2465.4,2465.1,0.40564]
[1725470891647,0.40561,2465.3,2465.0,0.40565]
[1725470891848,3.2078,2465.4,2465.0,0.40565]
[1725470892049,0.40561,2465.3,2465.0,0.40565]
[1725470892348,3.21388334,2465.7,2465.6,0.40556]
[1725470893049,0.40538,2466.7,2466.4,0.40541]
[1725470893349,3.41328139,2466.8,2466.0,1.01373]
[1725470893543,0.40538,2466.7,2466.4,0.40541]
[1725470893749,3.2078,2466.8,2466.6,0.40539]
[1725470893945,4.45898,2466.7,2466.5,0.00608334]
[1725470894151,3.61317,2466.8,2466.5,0.41148334]
[1725470894447,0.60570626,2466.7,2466.5,0.00608334]
[1725470894847,4.66010626,2466.7,2466.5,0.00608334]
[1725470895151,0.40539,2466.6,2466.5,0.00608334]
[1725470895543,4.0544,2466.6,2466.5,0.41149334]
[1725470895747,4.45979,2466.6,2466.5,0.00608334]
[1725470896151,11.47328,2466.6,2466.5,0.00608334]
[1725470896948,10.45979,2466.6,2466.5,0.00608334]
[1725470897852,11.47328,2466.6,2466.5,0.00608334]
[1725470900054,12.48677,2466.6,2466.5,0.00608334]
[1725470900257,0.40545,2466.3,2466.1,0.40547]
[1725470900452,0.40546,2466.2,2466.0,0.40548]
[1725470900655,4.59104,2466.5,2465.9,0.4055]
[1725470900850,3.2078,2466.2,2465.8,8.58471063]
[1725470901156,0.4055,2466.0,2465.7,0.3742]
[1725470901355,0.4055,2466.0,2465.8,0.40551]
[1725470901958,4.22147,2466.2,2465.8,0.40551]
[1725470902158,0.40552,2465.8,2465.7,0.3742]
[1725470902454,1.01386,2465.7,2464.7,3.2078]
[1725470902648,0.00608334,2465.4,2465.3,0.4056]
[1725470903159,0.00608334,2465.4,2465.2,0.40561]
[1725470903351,0.41168334,2465.4,2465.3,0.4056]
[1725470903662,0.00608334,2465.4,2465.2,0.40561]
[1725470903950,0.41168334,2465.4,2465.3,0.4056]
[1725470904153,0.4056,2465.3,2465.1,0.40563]
[1725470904350,0.40564,2465.1,2464.9,9.05254684]
[1725470904547,0.40565,2465.1,2464.9,0.40566]
[1725470904755,8.27876,2465.0,2464.3,3.2078]
[1725470904962,3.98826,2465.0,2464.7,0.4057]
[1725470905156,3.98826,2465.0,2464.5,0.40573]
[1725470905157,0.40569,2464.8,2464.5,0.40573]
[1725470905348,3.5826,2465.0,2464.3,3.2078]
[1725470905545,0.40568,2464.9,2464.5,0.40573]
[1725470905745,0.4057,2464.8,2464.5,0.40573]
[1725470905954,0.40569,2464.8,2464.4,0.40574]
[1725470906147,0.40571,2464.7,2464.3,3.61356]
[1725470906350,0.16182902,2465.4,2464.2,0.3615]
[1725470906351,3.2078,2466.6,2464.9,1.01417]
[1725470906551,0.60459328,2466.4,2465.6,6.0178]
[1725470906849,0.40546,2466.2,2465.8,0.40551]
[1725470907052,45.63755,2466.3,2465.9,0.4055]
[1725470907261,41.58235,2466.3,2465.9,0.4055]
[1725470907450,4.46066,2466.2,2465.9,0.00608334]
[1725470907650,41.18298334,2466.3,2466.0,0.40548]
[1725470907851,41.58842334,2466.3,2466.0,0.40548]
[1725470908054,4.0552,2466.2,2466.0,0.40548]
[1725470908357,4.0552,2466.2,2465.9,3.61938334]
[1725470908553,0.40548,2466.1,2465.9,0.00608334]
[1725470908761,4.46067,2466.2,2465.9,0.00608334]
[1725470909061,4.46067,2466.2,2465.9,0.41158334]
[1725470909852,4.0552,2466.1,2465.9,0.00608334]
[1725470910052,0.40549,2466.0,2465.9,0.00608334]
[1725470910353,4.46069,2466.0,2465.9,0.00608334]
[1725470910553,10.46069,2466.0,2465.9,0.00608334]
[1725470912456,11.47442,2466.0,2465.9,0.00608334]
[1725470912856,2.43336,2465.6,2465.5,3.2078]
[1725470913055,1.01401,2465.4,2464.7,3.2078]
[1725470913256,0.40568,2464.9,2464.7,3.2078]
[1725470913461,0.40568,2464.9,2464.7,3.61349]
[1725470913755,0.40566,2465.0,2464.8,0.40569]
[1725470913957,0.21244265,2465.1,2464.7,3.61349]
[1725470914156,0.40569,2464.8,2464.7,3.2078]
[1725470914662,41.20568,2464.9,2464.7,3.6135]
[1725470914859,41.20568,2464.9,2464.8,0.40569]
[1725470915257,45.26248,2464.9,2464.7,3.2078]
[1725470915459,40.8,2464.9,2464.8,0.40569]
[1725470916159,0.00608334,2465.1,2465.0,0.40565]
[1725470916564,0.40565,2465.0,2464.9,0.40566]
[1725470916758,40.80608334,2465.1,2464.8,0.76638]
[1725470916958,0.40567,2465.0,2464.8,0.76638]
[1725470917570,0.40567,2464.9,2464.8,0.76638]
[1725470917767,0.40566,2465.0,2464.9,0.40567]
[1725470917966,0.40567,2464.9,2464.8,0.3607]
[1725470918164,0.40569,2464.8,2464.7,3.2078]
[1725470918772,0.40569,2464.8,2464.7,3.6135]
[1725470918959,40.80608334,2465.1,2464.8,0.40569]
[1725470919166,0.40566,2465.0,2464.9,0.40566]
[1725470919359,0.40567,2464.9,2464.8,0.40568]
[1725470919571,0.40566,2465.0,2464.9,0.40567]
[1725470919768,41.82019334,2465.1,2464.7,3.2078]
[1725470920182,0.40568,2464.9,2464.8,0.40568]
[1725470920366,0.40569,2464.8,2464.7,3.6135]
[1725470920568,0.40568,2464.9,2464.8,0.40569]
[1725470920872,0.40569,2464.8,2464.7,3.61349]
[1725470921264,0.40568,2464.9,2464.7,3.2078]
[1725470921464,0.40569,2464.8,2464.7,3.2078]
[1725470921659,0.40569,2464.8,2464.7,3.6135]
[1725470921874,0.40569,2464.8,2464.7,3.2078]
[1725470922079,0.40574,2464.5,2464.4,3.2078]
[1725470922372,1.42055,2463.7,2463.6,1.35398306]
[1725470922569,6.42367,2463.7,2463.6,1.35398306]
[1725470922766,44.0078,2463.7,2463.6,1.35398306]
[1725470922972,41.20587,2463.7,2463.6,1.35398306]
[1725470923270,40.8,2463.7,2463.6,1.35398306]
[1725470923469,40.8,2463.7,2463.6,1.75986306]
[1725470923669,40.8,2463.7,2463.6,1.35398306]
[1725470924177,41.20587,2463.7,2463.6,1.35398306]
[1725470924366,40.8,2463.7,2463.6,1.35398306]
[1725470927175,40.8,2463.7,2463.6,1.75986306]
[1725470927475,3.2078,2463.8,2463.6,1.75985306]
[1725470927682,3.2078,2463.8,2463.6,1.35398306]
[1725470927866,44.0078,2463.8,2463.6,1.35398306]
[1725470928263,44.0078,2463.8,2463.6,1.75985306]
[1725470928973,44.0078,2463.8,2463.6,1.75986306]
[1725470929172,3.2078,2463.8,2463.6,1.35398306]
[1725470930073,0.40587,2463.7,2463.6,1.35398306]
[1725470930269,3.2078,2463.8,2463.6,1.35398306]
[1725470930468,0.40587,2463.7,2463.6,1.35398306]
[1725470930661,41.81455,2464.1,2463.6,1.75986306]
[1725470930662,0.40583,2464.0,2463.6,1.75986306]
[1725470930869,0.40582,2464.0,2463.6,1.75986306]
[1725470931075,40.8,2463.9,2463.6,1.75986306]
[1725470931875,40.8,2463.9,2463.6,1.75985306]
[1725470932077,40.8,2463.9,2463.7,0.40586]
[1725470932280,40.8,2463.9,2463.7,0.77756]
[1725470932468,40.8,2463.9,2463.7,0.3717]
[1725470933079,4.0584,2463.9,2463.6,1.35398306]
[1725470933274,1.01455,2464.0,2463.6,1.35398306]
[1725470933477,0.40585,2463.9,2463.6,1.35398306]
[1725470933674,40.8,2464.0,2463.6,1.35398306]
[1725470933878,0.40587,2463.8,2463.6,1.35398306]
[1725470934277,0.40587,2463.7,2463.6,1.35398306]
[1725470935281,10.46507,2463.7,2463.6,1.35398306]
[1725470935583,11.84925,2463.7,2463.6,1.35398306]
[1725470936081,11.84925,2463.7,2463.3,1.59181816]
[1725470936082,1.42072,2463.4,2463.3,1.59181816]
[1725470936380,7.74996066,2463.4,2463.3,1.59181816]
[1725470936568,17.80916066,2463.4,2463.3,1.59181816]
[1725470937174,48.67436066,2463.4,2463.3,1.59181816]
[1725470937370,54.67436066,2463.4,2463.3,1.59181816]
[1725470937575,48.67436066,2463.4,2463.3,1.59181816]
[1725470937777,48.47292,2463.4,2463.3,1.59181816]
[1725470938185,44.0078,2463.4,2463.3,1.59181816]
[1725470938384,48.47292,2463.4,2463.3,1.59181816]
[1725470938878,54.47292,2463.4,2463.3,1.59181816]
[1725470939184,55.48772,2463.4,2463.3,1.59181816]
[1725470939384,49.48772,2463.4,2463.3,1.59181816]
[1725470939684,48.47292,2463.4,2463.3,1.59181816]
[1725470940276,49.48772,2463.4,2463.3,1.59181816]
[1725470940487,55.48772,2463.4,2463.3,0.70812816]
[1725470940790,1.42095,2463.0,2462.9,2.6303602]
[1725470940987,4.62875,2463.0,2462.9,2.6303602]
[1725470941280,0.40608,2462.4,2462.3,3.15643224]
[1725470941488,4.62909,2462.4,2462.3,1.94228224]
[1725470941679,14.89343586,2462.4,2462.3,1.08383224]
[1725470941984,55.69343586,2462.4,2462.3,0.21988224]
[1725470942191,55.69343586,2462.4,2461.9,3.68250428]
[1725470942192,54.27214586,2462.4,2461.9,2.23777428]
[1725470942381,4.62933,2462.0,2461.9,0.95815428]
[1725470942579,14.69093,2462.0,2461.9,4.28e-06]
[1725470943183,3.2078,2462.3,2461.9,4.28e-06]
[1725470943389,3.61391,2462.3,2461.9,4.28e-06]
[1725470943587,3.2078,2462.0,2461.9,4.28e-06]
[1725470944692,7.2694,2462.0,2461.9,4.28e-06]
[1725470944888,0.00608334,2462.4,2462.3,0.4061]
[1725470945287,40.8,2463.3,2462.8,0.40601]
[1725470945592,40.8,2463.3,2462.9,0.3805]
[1725470945787,40.8,2463.3,2462.9,0.7865]
[1725470945991,40.8,2463.3,2462.9,0.3805]
[1725470946193,40.80608334,2463.3,2462.9,0.38658334]
[1725470946584,3.2078,2463.1,2462.9,0.38658334]
[1725470947283,0.40598,2463.0,2462.9,0.00608334]
[1725470947484,9.41592,2463.0,2462.9,3.34e-06]
[1725470947684,15.41592,2463.0,2462.9,3.34e-06]
[1725470947990,17.44586,2463.0,2462.9,3.34e-06]
[1725470948185,0.40615,2462.0,2461.7,0.7255]
[1725470948387,40.8,2462.0,2461.7,3.9333]
[1725470948589,41.20615,2462.0,2461.6,4.20857632]
[1725470948889,44.41395,2462.0,2461.6,4.20857632]
[1725470949094,48.47555,2462.0,2461.6,4.20857632]
[1725470949892,55.49093,2462.0,2461.6,4.20857632]
[1725470950200,1.4217,2461.7,2461.6,3.3914006]
[1725470950399,3.614,2461.7,2461.6,3.3914006]
[1725470950598,13.6764,2461.7,2461.6,3.3914006]
[1725470950789,14.6919,2461.7,2461.6,3.3914006]
[1725470950988,17.6119,2461.7,2461.6,3.3914006]
[1725470951487,1.42188,2461.4,2461.3,4.31645286]
[1725470951691,8.56531,2461.4,2461.3,7.55e-06]
[1725470951893,18.62851,2461.4,2461.3,7.55e-06]
[1725470952194,58.41288,2461.4,2461.3,7.55e-06]
[1725470952491,51.39725,2461.4,2461.3,7.55e-06]
[1725470952696,50.991,2461.4,2461.3,7.55e-06]
[1725470952891,44.0078,2461.4,2461.3,0.40626]
[1725470953288,56.991,2461.4,2460.8,0.7303]
[1725470953594,3.2078,2461.1,2460.8,1.13664]
[1725470953796,3.6141,2461.1,2460.8,0.7303]
[1725470954093,3.2078,2461.1,2460.8,0.7303]
[1725470954293,0.40627,2461.3,2460.9,0.40633]
[1725470954500,46.9278,2461.4,2460.8,0.7303]
[1725470954797,0.40627,2461.3,2460.8,0.7303]
[1725470955091,3.2078,2461.1,2460.7,0.00343049]
[1725470955294,0.40635,2460.8,2460.7,0.00343049]
[1725470955792,3.2078,2460.8,2460.7,0.00343049]
[1725470955998,0.40634,2460.9,2460.7,0.00343049]
[1725470956190,4.47035,2460.8,2460.7,0.00343049]
[1725470956497,5.68983172,2460.8,2460.7,0.00343049]
[1725470956797,52.48983172,2460.8,2460.7,0.00343049]
[1725470957097,51.47396172,2460.8,2460.7,0.00343049]
[1725470957594,52.48983172,2460.8,2460.7,0.00343049]
[1725470957795,53.50570172,2460.8,2460.7,0.00343049]
[1725470957989,53.50570172,2460.8,2460.7,4.9e-07]
[1725470958595,55.53745172,2460.8,2460.7,4.9e-07]
[1725470958800,0.40646,2460.1,2459.3,1.1044]
[1725470959099,1.42262,2460.1,2459.3,1.1044]
[1725470959286,10.0648,2460.1,2459.3,1.1044]
[1725470959491,43.72,2460.0,2459.3,1.1044]
[1725470959794,47.94401,2460.0,2459.3,1.1044]
[1725470960093,3.2078,2459.7,2459.3,1.1044]
[1725470960295,3.2078,2459.4,2459.3,0.40659]
[1725470960491,46.9278,2460.0,2459.6,0.40653]
[1725470960687,44.01389657,2460.0,2459.9,0.4065]
[1725470960889,3.21389657,2460.0,2459.9,0.4065]
[1725470961195,3.2078,2460.9,2460.5,0.40638]
[1725470961393,40.8,2460.6,2460.5,0.40638]
[1725470961693,0.20364437,2460.7,2460.0,0.7246]
[1725470961891,3.2078,2460.9,2460.4,0.40641]
[1725470962089,40.8,2460.8,2460.0,3.9324]
[1725470962394,40.8,2460.8,2460.7,0.40636]
[1725470963494,0.20659013,2461.0,2460.6,3.2078]
[1725470963495,0.00609657,2461.0,2460.6,3.2078]
[1725470963695,3.2078,2461.5,2460.9,0.40633]
[1725470963902,3.2078,2461.8,2461.0,0.3791]
[1725470964102,40.8,2461.7,2461.5,0.40622]
[1725470964406,40.8,2461.7,2461.1,1.38145]
[1725470964703,40.8,2461.7,2461.6,0.40621]
[1725470964902,40.8,2461.7,2461.1,0.3657]
[1725470965288,40.8,2461.7,2461.4,0.40624]
[1725470965489,40.8,2461.7,2461.6,0.40621]
[1725470965796,0.40625,2461.4,2461.1,0.3657]
[1725470965997,40.8,2461.7,2461.1,0.3657]
[1725470966497,40.8,2461.7,2461.1,3.5735]
[1725470967296,3.2078,2461.6,2461.1,0.3657]
[1725470967497,2.92,2461.4,2460.7,0.3921]
[1725470967704,40.8,2461.7,2460.2,3.21389657]
[1725470967705,6.1278,2461.0,2460.2,3.21389657]
[1725470967900,6.32703639,2461.0,2460.2,3.21389657]
[1725470968203,6.32703639,2461.0,2460.3,0.7581]
[1725470969204,3.11923639,2461.0,2460.3,0.7581]
[1725470969607,40.8,2460.9,2460.3,0.7581]
[1725470970895,0.20191901,2460.8,2460.3,0.7581]
[1725470971603,40.8,2460.9,2460.3,0.7581]
[1725470972003,41.00622683,2460.9,2460.3,0.7581]
[1725470972401,3.2078,2460.7,2460.3,0.7581]
[1725470973209,41.00622683,2460.9,2460.3,0.7581]
[1725470973210,40.8,2460.9,2460.5,3.2078]
[1725470973503,3.4150231,2461.9,2460.8,3.2078]
[1725470973802,40.8,2461.8,2461.2,3.2078]
[1725470974006,40.8,2461.8,2461.5,3.2078]
[1725470974307,40.8,2461.8,2461.6,0.3808]
[1725470974901,40.8,2461.8,2461.5,0.00609657]
[1725470975099,10.1902,2461.7,2461.0,0.3808]
[1725470975304,3.2078,2461.3,2460.5,0.3659]
[1725470975802,3.5985,2461.3,2460.5,0.3659]
[1725470976400,3.5985,2461.3,2460.7,0.00609657]
[1725470976699,3.2078,2461.0,2460.7,0.00609657]
[1725470976899,0.2027005,2461.0,2460.7,0.00609657]
[1725470977100,3.5985,2461.3,2460.7,0.00609657]
[1725470977396,3.2078,2461.0,2460.7,0.00609657]
[1725470977605,6.32814234,2461.0,2460.7,0.00609657]
[1725470977804,4.064,2460.9,2460.7,0.00609657]
[1725470978201,4.064,2460.8,2460.7,0.00609657]
[1725470978801,44.864,2460.8,2460.7,0.00609657]
[1725470979306,50.864,2460.8,2460.7,0.00609657]
[1725470980403,44.864,2460.8,2460.7,0.00609657]
[1725470983612,40.8,2460.8,2460.7,0.00609657]
[1725470986011,4.111,2461.3,2460.7,13.27789657]
[1725470986213,4.111,2461.7,2461.0,3.2078]
[1725470986411,4.111,2461.7,2461.1,0.3775]
[1725470986612,40.8,2461.6,2461.1,0.3775]
[1725470987113,3.2078,2461.5,2461.1,0.3775]
[1725470987413,40.8,2461.6,2461.1,0.3775]
[1725470988317,0.00609657,2461.9,2461.3,3.2078]
[1725470988812,40.8,2461.8,2461.3,3.2078]
[1725470989611,40.8,2461.8,2461.1,0.3775]
[1725470991013,40.8,2461.8,2461.2,11.84133375]
[1725470991515,40.8,2461.8,2461.2,8.63353375]
[1725470992112,40.8,2461.8,2461.2,11.84133375]
[1725470992611,0.00609657,2461.9,2461.3,4.0624]
[1725470992814,0.00609657,2461.9,2461.4,0.3788]
[1725470993012,0.00609657,2461.9,2461.4,8.71575022]
[1725470993521,40.80609657,2461.9,2461.4,8.71575022]
[1725470994015,0.00609657,2461.9,2461.4,8.71575022]
[1725470995522,0.00609657,2461.9,2461.4,0.3788]
[1725470998911,3.2078,2461.7,2461.1,0.3775]
[1725470999117,3.2078,2461.7,2461.0,3.2078]
[1725470999712,3.2963,2461.8,2461.0,3.2078]
[1725470999913,3.1863,2461.8,2461.0,3.2078]
[1725471000315,2.81,2461.5,2460.8,0.374]
[1725471000622,6.0178,2461.6,2460.8,0.374]
[1725471001116,2.81,2461.3,2460.8,0.374]
[1725471001620,2.81,2461.6,2460.8,0.374]
[1725471002022,7.6951,2461.8,2460.8,0.374]
[1725471002414,4.4873,2461.8,2461.0,3.2078]
[1725471002722,4.4873,2461.8,2461.1,0.3889]
[1725471002921,4.4873,2461.8,2461.1,0.7605]
[1725471003617,0.3763,2461.8,2461.1,3.9683]
[1725471004127,0.00609657,2461.9,2461.1,3.9683]
[1725471004531,3.21389657,2461.9,2461.1,0.7605]
[1725471004822,0.3743,2461.8,2461.1,0.7605]
[1725471005218,0.3743,2461.8,2460.8,3.5818]
[1725471005620,0.3743,2461.8,2460.9,8.74684103]
[1725471005928,0.00609657,2461.9,2461.1,3.2078]
[1725471006129,0.00609657,2461.9,2461.2,0.7161]
[1725471006833,3.21389657,2461.9,2461.2,0.7161]
[1725471007127,3.21389657,2461.9,2461.2,0.3594]
[1725471007328,0.00609657,2461.9,2461.2,0.3594]
[1725471008532,0.00609657,2461.9,2461.5,3.2078]
[1725471008733,0.00609657,2461.9,2461.3,8.34545462]
[1725471008929,0.00609657,2461.9,2461.2,0.7345]
[1725471016929,0.00609657,2461.9,2461.4,3.2078]
[1725471017432,4.111,2463.1,2461.8,3.2078]
[1725471017625,3.2078,2463.2,2462.1,3.2078]
[1725471018332,0.00609657,2462.9,2462.4,0.00609657]
[1725471019133,3.2078,2462.8,2462.4,0.00609657]
[1725471019326,2.6482315,2462.6,2462.4,0.00609657]
[1725471019524,2.6482315,2462.6,2462.4,3.21389657]
[1725471019734,2.0593315,2462.7,2462.5,4.4239]
[1725471019930,0.00609657,2462.9,2462.4,9.21389657]
[1725471019931,2.0593315,2462.8,2462.4,0.00609657]
[1725471020236,3.2078,2462.6,2462.4,0.00609657]
[1725471020439,3.21389657,2462.9,2462.4,0.00609657]
[1725471020737,3.2078,2462.6,2462.4,0.00609657]
[1725471021439,4.0608,2462.5,2462.4,0.00609657]
[1725471022030,44.8608,2462.5,2462.4,0.00609657]
[1725471022236,3.2078,2462.6,2462.4,0.00609657]
[1725471022543,6.52362067,2462.9,2462.4,0.00609657]
[1725471022544,6.39177437,2462.9,2462.4,0.00609657]
[1725471023229,3.2078,2462.8,2462.4,0.00609657]
[1725471023843,3.21389657,2462.9,2462.4,4.06689657]
[1725471024139,0.00609657,2462.9,2462.5,0.7541]
[1725471025251,0.00609657,2462.9,2462.6,0.3556]
[1725471026134,3.21389657,2462.9,2462.6,0.3556]
[1725471029337,2.81,2462.7,2462.4,0.00609657]
[1725471029551,3.2078,2462.5,2462.4,0.00609657]
[1725471029940,3.1778778,2462.7,2462.4,0.00609657]
[1725471030641,3.1778778,2462.7,2462.5,4.0608]
[1725471031044,3.1778778,2462.7,2462.6,4.0608]
[1725471031245,3.1778778,2462.7,2462.5,4.0608]
[1725471031441,3.1778778,2462.7,2462.4,4.06689657]
[1725471031952,3.1778778,2462.7,2462.5,4.0608]
[1725471032145,3.1778778,2462.7,2462.4,4.06689657]
[1725471032341,3.1778778,2462.7,2462.4,0.00609657]
[1725471036149,3.1778778,2462.7,2462.5,4.0608]
[1725471036350,3.1778778,2462.7,2462.4,7.27469657]
[1725471036557,3.1778778,2462.7,2462.5,4.0608]
[1725471037060,3.1778778,2462.7,2462.6,4.0608]
[1725471037356,3.1778778,2462.7,2462.5,4.0608]
[1725471037556,3.1778778,2462.7,2462.4,7.27469657]
[1725471037859,3.71362067,2462.9,2462.6,11.31917453]
[1725471038053,3.71362067,2462.9,2462.8,3.2078]
[1725471038459,3.71362067,2462.9,2462.8,13.2678]
[1725471038656,3.71362067,2462.9,2462.8,3.2078]
[1725471039251,3.71362067,2462.9,2462.8,13.2678]
[1725471039452,3.71362067,2462.9,2462.8,7.2678]
[1725471039650,3.71362067,2462.9,2462.8,3.2078]
[1725471041969,3.71362067,2462.9,2462.4,6.22691297]
[1725471042268,3.71362067,2462.9,2462.5,8.4700611]
[1725471042869,3.71362067,2462.9,2462.7,6.0178]
[1725471043069,3.71362067,2462.9,2462.8,0.3703]
[1725471043272,3.71362067,2462.9,2462.8,4.8173]
[1725471043578,3.71362067,2462.9,2462.8,10.8173]
[1725471043871,1.94782067,2462.9,2462.8,10.8173]
[1725471044070,1.94782067,2462.9,2462.8,12.9173]
[1725471044975,1.94782067,2462.9,2462.8,21.67287463]
[1725471045167,1.94782067,2462.9,2462.8,15.30257463]
[1725471045471,1.94782067,2462.9,2462.8,21.30257463]
[1725471045672,1.94782067,2462.9,2462.8,15.30257463]
[1725471045875,1.94782067,2462.9,2462.8,10.85557463]
[1725471046173,1.94782067,2462.9,2462.8,14.91557463]
[1725471047074,1.94782067,2462.9,2462.8,8.75557463]
[1725471047372,1.94782067,2462.9,2462.7,3.2078]
[1725471047977,1.94782067,2462.9,2462.6,2.1]
[1725471048175,1.94782067,2462.9,2462.4,0.20911297]
[1725471048475,1.94782067,2462.9,2462.5,10.39435804]
[1725471048877,1.94782067,2462.9,2462.5,2.1]
[1725471049172,1.94782067,2462.9,2462.4,0.00609657]
[1725471050467,5.15562067,2462.9,2462.4,0.00609657]
[1725471050779,0.20331212,2462.8,2462.4,0.00609657]
[1725471050978,0.741,2462.7,2462.4,0.00609657]
[1725471051179,1.126,2462.7,2462.4,0.00609657]
[1725471054078,1.126,2462.7,2462.5,2.1]
[1725471054978,1.126,2462.7,2462.4,0.00609657]
[1725471055177,0.7434,2462.7,2462.4,0.00609657]
[1725471055384,1.94782067,2462.9,2462.6,5.3078]
[1725471056270,1.94782067,2462.9,2462.8,2.1]
[1725471056684,1.94782067,2462.9,2462.8,20.80602119]
[1725471057280,0.00609657,2463.1,2462.8,20.80602119]
[1725471057474,0.00609657,2463.1,2463.0,5.3078]
[1725471057879,0.00609657,2463.1,2463.0,23.87839107]
[1725471060685,0.00609657,2463.1,2463.0,3.2078]
[1725471060883,0.39229657,2463.1,2463.0,3.2078]
[1725471061277,0.39229657,2463.1,2463.0,5.3078]
[1725471061482,0.00609657,2463.1,2463.0,15.3678]
[1725471061683,0.00609657,2463.1,2463.0,23.70576744]
[1725471062187,0.00609657,2463.1,2463.0,11.54576744]
[1725471062388,0.39229657,2463.1,2463.0,13.64576744]
[1725471063285,0.39229657,2463.1,2463.0,5.3078]
[1725471063490,1.12179657,2463.1,2463.0,3.2078]
[1725471063686,8.38959657,2463.1,2462.5,2.1]
[1725471063891,3.2078,2462.8,2462.5,2.1]
[1725471064183,0.20016242,2462.7,2462.5,2.1]
[1725471064384,3.2078,2462.8,2462.5,2.1]
[1725471064983,0.19794944,2462.7,2462.5,2.1]
[1725471065491,3.2078,2462.8,2462.5,2.1]
[1725471066083,3.2078,2464.4,2462.7,5.3078]
[1725471066287,0.3754,2464.2,2464.0,3.2078]
[1725471066583,0.3754,2464.2,2464.1,2.1]
[1725471068987,4.4338,2464.2,2463.9,0.00609657]
[1725471069189,3.2078,2464.0,2463.4,3.2078]
[1725471069790,3.2078,2464.0,2463.5,2.1]
[1725471069991,3.2078,2464.0,2463.4,3.2078]
[1725471070184,3.2078,2464.0,2463.0,2.81]
[1725471070385,3.2078,2463.7,2463.5,0.00609657]
[1725471070599,0.00609657,2464.4,2463.5,0.00609657]
[1725471070600,0.7692,2463.6,2463.5,0.00609657]
[1725471070996,0.7692,2463.6,2463.5,4.06529657]
[1725471071193,0.7692,2463.6,2463.5,6.87529657]
[1725471071699,0.7692,2463.6,2463.5,12.87529657]
[1725471071902,0.3866,2463.6,2463.5,6.87529657]
[1725471073001,0.3866,2463.6,2463.5,12.87529657]
[1725471073203,0.3866,2463.6,2463.5,4.06529657]
[1725471073406,0.3866,2463.6,2463.5,0.00609657]
[1725471073796,0.3866,2463.6,2463.5,3.21389657]
[1725471075694,0.3866,2463.6,2463.5,0.00609657]
[1725471076008,0.3866,2463.6,2463.5,3.21389657]
[1725471078705,0.3866,2463.6,2463.5,0.00609657]
[1725471079303,0.3866,2463.6,2463.2,3.2078]
[1725471079505,0.3866,2463.6,2462.9,3.2078]
[1725471079893,0.3866,2463.6,2462.7,8.33491561]
[1725471080095,40.8,2463.5,2462.6,3.2078]
[1725471080297,0.00609657,2463.3,2462.8,0.00609657]
[1725471081697,4.06609657,2463.3,2462.8,0.00609657]
[1725471082207,0.3569,2463.2,2462.8,0.00609657]
[1725471082407,0.3824,2463.1,2462.8,0.00609657]
[1725471082605,0.3816,2463.0,2462.8,0.00609657]
[1725471082900,0.3816,2463.0,2462.9,3.2078]
[1725471083502,0.3816,2463.0,2462.9,7.2678]
[1725471083707,0.38769657,2463.3,2462.9,24.68339793]
[1725471083915,0.38769657,2463.3,2462.9,11.81339793]
[1725471084207,0.38769657,2463.3,2462.9,3.2078]
[1725471084406,0.3812,2463.2,2462.8,0.00609657]
[1725471086310,0.3812,2463.2,2462.9,3.2078]
[1725471086609,0.3812,2463.2,2462.8,0.00609657]
[1725471088813,0.3812,2463.2,2462.9,3.2078]
[1725471089810,0.3812,2463.2,2462.8,0.00609657]
[1725471090415,3.589,2463.2,2462.8,0.00609657]
[1725471090706,0.3812,2463.2,2462.9,3.2078]
[1725471090907,0.3812,2463.2,2462.8,0.00609657]
[1725471091108,3.2078,2463.0,2462.0,6.0178]
[1725471091514,40.8,2463.1,2462.1,8.40664015]
[1725471091717,0.3812,2463.2,2462.1,8.40664015]
[1725471091914,3.2078,2463.1,2462.2,2.11]
[1725471092212,44.0078,2463.1,2462.4,0.00609657]
[1725471092609,3.2078,2463.1,2462.4,0.00609657]
[1725471093713,3.2078,2462.7,2462.4,0.00609657]
[1725471094116,0.7154,2462.6,2462.4,0.00609657]
[1725471094317,1.1076,2462.6,2462.4,0.00609657]
[1725471094518,4.0608,2462.5,2462.4,0.00609657]
[1725471094816,6.1708,2462.5,2461.7,2.11]
[1725471095016,2.11,2462.5,2461.7,2.11]
[1725471095812,3.2078,2462.4,2461.7,2.11]
[1725471096012,2.11,2462.5,2461.7,2.11]
[1725471096213,3.2078,2462.3,2461.7,2.11]
[1725471096410,5.5208864,2462.3,2461.6,3.2078]
[1725471097416,2.11,2462.1,2461.6,3.2078]
[1725471097626,3.4108864,2462.3,2460.7,0.13170324]
[1725471097627,2.11,2461.7,2460.8,2.11]
[1725471097815,0.3549,2461.6,2460.7,3.5904]
[1725471098015,0.00609657,2461.5,2460.8,10.82224434]